lending/lending_fUSD_20240504
["ID","MTS","AMOUNT","RATE_DAILY","PERIOD"]
[325410840,1714854678152,-500.0,0.00041369,31]
[325410841,1714854678162,-500.0,0.00041369,31]
[325410842,1714854678171,-500.0,0.00041369,31]
[325410843,1714854678180,-963.3,0.00041369,31]
[325410844,1714854678189,-500.0,0.00041369,31]
[325410845,1714854678198,-1015.6,0.00041369,31]
[325410846,1714854678208,-628.01,0.00041369,31]
[325410847,1714854678217,-1141.04,0.00041369,31]
[325410848,1714854678226,-503.7730507,0.00041369,31]
[325410849,1714854678236,-500.0,0.00041369,31]
[325410850,1714854678245,-728.79,0.00041369,31]
[325410851,1714854678254,-500.0,0.00041369,31]
[325410852,1714854678263,-500.0,0.00041369,31]
[325410853,1714854678273,-501.74915557,0.00041369,30]
[325410854,1714854678283,-1082.99,0.00041369,31]
[325410855,1714854678292,-500.0,0.00041369,31]
[325410856,1714854678302,-500.0,0.00041369,31]
[325410857,1714854678312,-500.0,0.00041369,31]
[325410858,1714854678322,-500.0,0.00041369,31]
[325410859,1714854678331,-500.0,0.00041369,31]
[325410860,1714854678341,-890.44,0.00041369,31]
[325410861,1714854678351,-648.36,0.00041369,31]
[325410862,1714854678361,-1043.24,0.00041369,31]
[325410863,1714854678371,-1500.0,0.00041369,31]
[325410864,1714854678379,-500.0,0.00041369,31]
[325410865,1714854678388,-500.0,0.00041369,31]
[325410866,1714854678398,-876.68,0.00041369,31]
[325410867,1714854678409,-500.0,0.00041369,31]
[325410868,1714854678419,-500.0,0.00041369,31]
[325410869,1714854678428,-694.38,0.00041369,31]
[325410870,1714854678440,-1121.6,0.00041369,31]
[325410871,1714854678450,-500.0,0.00041369,31]
[325410872,1714854678459,-500.0,0.00041369,31]
[325410873,1714854678469,-1231.96,0.00041369,31]
[325410874,1714854678480,-1340.78,0.00041369,31]
[325410875,1714854678490,-500.0,0.00041369,31]
[325410876,1714854678500,-500.0,0.00041369,31]
[325410877,1714854678510,-500.0,0.00041369,31]
[325410878,1714854678521,-500.0,0.00041369,31]
[325410879,1714854678531,-1174.31,0.00041369,31]
[325410880,1714854678540,-1353.16,0.00041369,31]
[325410881,1714854678549,-593.95,0.00041369,31]
[325410882,1714854678558,-500.0,0.00041369,31]
[325410883,1714854678568,-500.0,0.00041369,31]
[325410884,1714854678577,-695.28,0.00041369,31]
[325410885,1714854678586,-500.0,0.00041369,2]
[325410886,1714854678595,-500.0,0.00041369,31]
[325410887,1714854678605,-500.0,0.00041369,31]
[325410888,1714854678615,-500.0,0.00041369,31]
[325410889,1714854678624,-593.07,0.00041369,31]
[325410890,1714854678634,-500.0,0.00041369,31]
[325410891,1714854678644,-1221.16,0.00041369,31]
[325410892,1714854678653,-500.0,0.00041369,31]
[325410893,1714854678664,-632.26,0.00041369,31]
[325410894,1714854678673,-1137.7,0.00041369,31]
[325410895,1714854678683,-500.0,0.00041369,31]
[325410896,1714854678692,-500.0,0.00041369,31]
[325410897,1714854678702,-1227.65,0.00041369,31]
[325410898,1714854678711,-500.0,0.00041369,31]
[325410899,1714854678721,-1326.27,0.00041369,31]
[325410900,1714854678731,-1136.54,0.00041369,31]
[325410901,1714854678740,-500.0,0.00041369,31]
[325410902,1714854678749,-500.0,0.00041369,31]
[325410903,1714854678759,-500.0,0.00041369,31]
[325410904,1714854678768,-500.0,0.00041369,31]
[325410905,1714854678777,-500.0,0.00041369,31]
[325410906,1714854678787,-500.0,0.00041369,31]
[325410907,1714854678796,-500.0,0.00041369,31]
[325410908,1714854678806,-500.0,0.00041369,31]
[325410909,1714854678815,-500.0,0.00041369,31]
[325410910,1714854678825,-500.28623124,0.00041369,31]
[325410911,1714854678834,-500.0,0.00041369,31]
[325410912,1714854678843,-764.25,0.00041369,31]
[325410913,1714854678853,-792.56,0.00041369,31]
[325410914,1714854678862,-500.0,0.00041369,31]
[325410915,1714854678873,-500.0,0.00041369,31]
[325410916,1714854678882,-682.38,0.00041369,31]
[325410917,1714854678892,-500.0,0.00041369,31]
[325410918,1714854678900,-500.0,0.00041369,31]
[325410919,1714854678910,-500.0,0.00041369,31]
[325410920,1714854678919,-500.0,0.00041369,31]
[325410921,1714854678928,-500.0,0.00041369,31]
[325410922,1714854678937,-777.0,0.00041369,31]
[325410923,1714854678947,-500.0,0.00041369,31]
[325410924,1714854678956,-500.0,0.00041369,31]
[325410925,1714854678966,-500.0,0.00041369,31]
[325410926,1714854678978,-500.0,0.00041369,31]
[325410927,1714854678988,-500.0,0.00041369,31]
[325410928,1714854678998,-500.0,0.00041369,31]
[325410929,1714854679007,-500.0,0.00041369,31]
[325410930,1714854679016,-821.87,0.00041369,31]
[325410931,1714854679025,-676.71,0.00041369,31]
[325410932,1714854679035,-1235.21,0.00041369,31]
[325410933,1714854679044,-500.0,0.00041369,31]
[325410934,1714854679053,-889.54,0.00041369,31]
[325410935,1714854679062,-500.0,0.00041369,31]
[325410936,1714854679072,-500.0,0.00041369,31]
[325410937,1714854679081,-500.0,0.00041369,31]
[325410938,1714854679090,-941.29,0.00041369,31]
[325410939,1714854679099,-500.0,0.00041369,31]
[325410940,1714854679109,-500.0,0.00041369,31]
[325410941,1714854679119,-500.0,0.00041369,31]
[325410942,1714854679128,-579.68,0.00041369,31]
[325410943,1714854679137,-500.0,0.00041369,31]
[325410944,1714854679146,-500.0,0.00041369,31]
[325410945,1714854679155,-583.83,0.00041369,31]
[325410946,1714854679165,-500.0,0.00041369,31]
[325410947,1714854679174,-500.0,0.00041369,31]
[325410948,1714854679184,-858.86,0.00041369,31]
[325410949,1714854679194,-500.0,0.00041369,31]
[325410950,1714854679203,-904.22,0.00041369,31]
[325410951,1714854679212,-500.0,0.00041369,31]
[325410952,1714854679222,-500.0,0.00041369,31]
[325410953,1714854679231,-500.0,0.00041369,31]
[325410954,1714854679241,-500.0,0.00041369,31]
[325410955,1714854679250,-840.76,0.00041369,31]
[325410956,1714854679259,-1482.46,0.00041369,31]
[325410957,1714854679268,-1353.63,0.00041369,31]
[325410958,1714854679278,-500.0,0.00041369,31]
[325410959,1714854679287,-500.0,0.00041369,31]
[325410960,1714854679299,-500.0,0.00041369,31]
[325410961,1714854679309,-500.0,0.00041369,31]
[325410962,1714854679318,-591.93534024,0.00041369,31]
[325410963,1714854679327,-500.0,0.00041369,31]
[325410964,1714854679337,-548.94,0.00041369,31]
[325410965,1714854679346,-500.0,0.00041369,31]
[325410966,1714854679355,-500.0,0.00041369,31]
[325410967,1714854679364,-908.18,0.00041369,31]
[325410968,1714854679373,-500.0,0.00041369,31]
[325410969,1714854679382,-500.0,0.00041369,31]
[325410970,1714854679393,-500.0,0.00041369,31]
[325410971,1714854679402,-1534.33,0.00041369,31]
[325410972,1714854679412,-501.87090883,0.00041369,2]
[325410973,1714854679422,-500.0,0.00041369,31]
[325410974,1714854679436,-584.80001829,0.00041369,31]
[325410975,1714854679446,-789.1,0.00041369,31]
[325410976,1714854679456,-852.9,0.00041369,31]
[325410977,1714854679466,-500.0,0.00041369,31]
[325410978,1714854679478,-700.73,0.00041369,31]
[325410979,1714854679487,-500.0,0.00041369,31]
[325410980,1714854679496,-500.0,0.00041369,31]
[325410981,1714854679506,-500.0,0.00041369,31]
[325410982,1714854679516,-1330.27,0.00041369,31]
[325410983,1714854679526,-500.0,0.00041369,31]
[325410984,1714854679535,-500.0,0.00041369,31]
[325410985,1714854679545,-687.24,0.00041369,31]
[325410986,1714854679555,-504.85814043,0.00041369,31]
[325410987,1714854679564,-534.73008122,0.00041369,31]
[325410988,1714854679574,-500.0,0.00041369,31]
[325410989,1714854679583,-500.0,0.00041369,31]
[325410990,1714854679592,-500.0,0.00041369,31]
[325410991,1714854679602,-500.0,0.00041369,31]
[325410992,1714854679611,-500.0,0.00041369,31]
[325410993,1714854679621,-500.0,0.00041369,31]
[325410994,1714854679630,-500.0,0.00041369,31]
[325410995,1714854679639,-500.0,0.00041369,31]
[325410996,1714854679649,-500.0,0.00041369,31]
[325410997,1714854679658,-522.06,0.00041369,31]
[325410998,1714854679667,-500.0,0.00041369,31]
[325410999,1714854679677,-541.41,0.00041369,31]
[325411000,1714854679687,-151.0,0.00041369,7]
[325411001,1714854679696,-500.0,0.00041369,31]
[325411002,1714854679706,-500.0,0.00041369,31]
[325411003,1714854679715,-151.0,0.00041369,7]
[325411004,1714854679725,-500.0,0.00041369,31]
[325411005,1714854679735,-500.0,0.00041369,31]
[325411006,1714854679745,-506.11105956,0.00041369,31]
[325411007,1714854679754,-503.16646958,0.00041369,31]
[325411008,1714854679764,-500.0,0.00041369,31]
[325411009,1714854679773,-500.0,0.00041369,31]
[325411010,1714854679783,-500.0,0.00041369,31]
[325411011,1714854679793,-500.0,0.00041369,31]
[325411012,1714854679802,-500.0,0.00041369,31]
[325411013,1714854679812,-1212.95,0.00041369,31]
[325411014,1714854679821,-1069.33,0.00041369,31]
[325411015,1714854679831,-500.0,0.00041369,31]
[325411016,1714854679841,-500.0,0.00041369,31]
[325411017,1714854679851,-1210.18,0.00041369,31]
[325411018,1714854679861,-779.81,0.00041369,31]
[325411019,1714854679871,-500.0,0.00041369,31]
[325411020,1714854679881,-500.0,0.00041369,31]
[325411021,1714854679890,-500.0,0.00041369,31]
[325411022,1714854679900,-500.0,0.00041369,31]
[325411023,1714854679910,-1454.48,0.00041369,31]
[325411024,1714854679920,-500.0,0.00041369,31]
[325411025,1714854679930,-500.0,0.00041369,31]
[325411026,1714854679940,-584.6,0.00041369,31]
[325411027,1714854679949,-1156.98,0.00041369,31]
[325411028,1714854679959,-500.0,0.00041369,31]
[325411029,1714854679969,-853.87,0.00041369,31]
[325411030,1714854679979,-1309.13,0.00041369,31]
[325411031,1714854679989,-500.0,0.00041369,31]
[325411032,1714854679998,-1362.88,0.00041369,31]
[325411033,1714854680007,-500.0,0.00041369,31]
[325411034,1714854680017,-1197.66,0.00041369,31]
[325411035,1714854680027,-1194.56,0.00041369,31]
[325411036,1714854680037,-500.0,0.00041369,31]
[325411037,1714854680046,-532.50383462,0.00041369,31]
[325411038,1714854680056,-500.0,0.00041369,31]
[325411039,1714854680065,-500.0,0.00041369,31]
[325411040,1714854680075,-500.0,0.00041369,31]
[325411041,1714854680085,-500.0,0.00041369,31]
[325411042,1714854680095,-500.0,0.00041369,31]
[325411043,1714854680105,-1129.04,0.00041369,31]
[325411044,1714854680115,-500.0,0.00041369,31]
[325411045,1714854680125,-500.0,0.00041369,31]
[325411046,1714854680134,-500.0,0.00041369,31]
[325411047,1714854680144,-1214.17,0.00041369,31]
[325411048,1714854680153,-1435.22,0.00041369,31]
[325411049,1714854680163,-500.0,0.00041369,31]
[325411050,1714854680172,-837.24,0.00041369,31]
[325411051,1714854680182,-500.0,0.00041369,31]
[325411052,1714854680191,-2602.46,0.00041369,31]
[325411053,1714854680201,-653.57,0.00041369,31]
[325411054,1714854680210,-1613.73,0.00041369,31]
[325411055,1714854680220,-1227.04,0.00041369,31]
[325411056,1714854680229,-884.21,0.00041369,31]
[325411057,1714854680239,-500.0,0.00041369,31]
[325411058,1714854680248,-500.0,0.00041369,31]
[325411059,1714854680258,-500.0,0.00041369,31]
[325411060,1714854680267,-1120.09,0.00041369,31]
[325411061,1714854680277,-917.53,0.00041369,31]
[325411062,1714854680287,-1324.54,0.00041369,31]
[325411063,1714854680297,-536.28,0.00041369,31]
[325411064,1714854680307,-500.0,0.00041369,31]
[325411065,1714854680316,-500.0,0.00041369,31]
[325411066,1714854680327,-500.0,0.00041369,31]
[325411067,1714854680336,-1737.11,0.00041369,7]
[325411068,1714854680346,-500.0,0.00041369,31]
[325411069,1714854680356,-500.0,0.00041369,31]
[325411070,1714854680365,-500.0,0.00041369,31]
[325411071,1714854680377,-500.0,0.00041369,31]
[325411072,1714854680386,-500.0,0.00041369,31]
[325411073,1714854680396,-645.28,0.00041369,31]
[325411074,1714854680405,-500.0,0.00041369,31]
[325411075,1714854680414,-1417.06,0.00041369,31]
[325411076,1714854680425,-829.59,0.00041369,31]
[325411077,1714854680435,-1121.68,0.00041369,31]
[325411078,1714854680446,-500.0,0.00041369,31]
[325411079,1714854680455,-713.37,0.00041369,31]
[325411080,1714854680464,-500.0,0.00041369,31]
[325411081,1714854680475,-1135.9,0.00041369,31]
[325411082,1714854680484,-514.71,0.00041369,31]
[325411083,1714854680493,-924.08,0.00041369,31]
[325411084,1714854680503,-1828.96,0.00041369,31]
[325411085,1714854680515,-500.0,0.00041369,31]
[325411086,1714854680524,-505.72163773,0.00041369,31]
[325411087,1714854680534,-1137.03,0.00041369,31]
[325411088,1714854680543,-2329.86,0.00041369,31]
[325411089,1714854680552,-1101.83,0.00041369,31]
[325411090,1714854680562,-506.76021263,0.00041369,31]
[325411091,1714854680571,-151.0,0.00041369,14]
[325411092,1714854680580,-500.0,0.00041369,31]
[325411093,1714854680590,-151.0,0.00041369,14]
[325411094,1714854680599,-500.0,0.00041369,31]
[325411095,1714854680609,-947.5,0.00041369,31]
[325411096,1714854680619,-1219.68,0.00041369,31]
[325411097,1714854680628,-1016.47,0.00041369,31]
[325411098,1714854680638,-500.0,0.00041369,31]
[325411099,1714854680648,-1282.77,0.00041369,31]
[325411100,1714854680657,-500.0,0.00041369,31]
[325411101,1714854680666,-500.0,0.00041369,31]
[325411102,1714854680675,-500.0,0.00041369,31]
[325411103,1714854680685,-519.86957072,0.00041369,31]
[325411104,1714854680695,-500.0,0.00041369,31]
[325411105,1714854680704,-658.9,0.00041369,31]
[325411106,1714854680714,-500.0,0.00041369,31]
[325411107,1714854680724,-500.0,0.00041369,7]
[325411108,1714854680734,-500.0,0.00041369,31]
[325411109,1714854680743,-417.03054551,0.00041369,31]
[325411110,1714854680752,-500.0,0.00041369,31]
[325411111,1714854680762,-505.12963076,0.00041369,31]
[325411112,1714854680771,-1235.13,0.00041369,31]
[325411113,1714854680780,-1232.01,0.00041369,31]
[325411114,1714854680790,-1605.56,0.00041369,31]
[325411115,1714854680799,-500.0,0.00041369,31]
[325411116,1714854680808,-151.0,0.00041369,14]
[325411117,1714854680818,-151.0,0.00041369,14]
[325411118,1714854680828,-500.0,0.00041369,31]
[325411119,1714854680838,-500.0,0.00041369,31]
[325411120,1714854680847,-1370.3,0.00041369,31]
[325411121,1714854680857,-500.0,0.00041369,31]
[325411122,1714854680868,-500.0,0.00041369,31]
[325411123,1714854680878,-500.0,0.00041369,31]
[325411124,1714854680888,-500.0,0.00041369,31]
[325411125,1714854680897,-500.0,0.00041369,31]
[325411126,1714854680907,-500.0,0.00041369,31]
[325411127,1714854680917,-500.0,0.00041369,31]
[325411128,1714854680927,-500.0,0.00041369,31]
[325411129,1714854680937,-1021.34,0.00041369,31]
[325411130,1714854680946,-164.63830737,0.00041369,31]
[325411131,1714854680956,-655.55,0.00041369,31]
[325411132,1714854680966,-500.0,0.00041369,31]
[325411133,1714854680976,-500.0,0.00041369,31]
[325411134,1714854680985,-500.0,0.00041369,31]
[325411135,1714854680995,-637.66,0.00041369,31]
[325411136,1714854681005,-280.97987886,0.00041369,31]
[325411137,1714854681015,-500.0,0.00041369,31]
[325411138,1714854681024,-691.52,0.00041369,31]
[325411139,1714854681034,-500.0,0.00041369,31]
[325411140,1714854681044,-500.0,0.00041369,31]
[325411141,1714854681054,-1748.97,0.00041369,31]
[325411142,1714854681064,-500.0,0.00041369,31]
[325411143,1714854681074,-247.007737,0.00041369,14]
[325411144,1714854681083,-247.007737,0.00041369,14]
[325411145,1714854681093,-1700.2,0.00041369,31]
[325411146,1714854681103,-500.0,0.00041369,31]
[325411147,1714854681112,-500.0,0.00041369,31]
[325411148,1714854681124,-1517.91,0.00041369,31]
[325411149,1714854681133,-500.0,0.00041369,31]
[325411150,1714854681143,-500.0,0.00041369,31]
[325411151,1714854681153,-247.007737,0.00041369,14]
[325411152,1714854681164,-1000.9763469,0.00041369,2]
[325411153,1714854681174,-247.007737,0.00041369,14]
[325411154,1714854681183,-994.84,0.00041369,31]
[325411155,1714854681194,-151.0,0.00041369,14]
[325411156,1714854681204,-151.0,0.00041369,14]
[325411157,1714854681215,-912.83,0.00041369,31]
[325411158,1714854681225,-1106.67,0.00041369,31]
[325411159,1714854681236,-500.0,0.00041369,31]
[325411160,1714854681246,-500.0,0.00041369,31]
[325411161,1714854681256,-500.0,0.00041369,31]
[325411162,1714854681267,-500.0,0.00041369,31]
[325411163,1714854681277,-500.0,0.00041369,31]
[325411164,1714854681287,-500.0,0.00041369,31]
[325411165,1714854681298,-500.0,0.00041369,31]
[325411166,1714854681307,-1421.44,0.00041369,31]
[325411167,1714854681317,-500.0,0.00041369,31]
[325411168,1714854681327,-500.0,0.00041369,2]
[325411169,1714854681337,-2000.0,0.00041369,30]
[325411170,1714854681347,-500.0,0.00041369,31]
[325411171,1714854681357,-500.0,0.00041369,31]
[325411172,1714854681369,-500.0,0.00041369,31]
[325411173,1714854681378,-500.0,0.00041369,31]
[325411174,1714854681388,-500.0,0.00041369,31]
[325411175,1714854681398,-719.21,0.00041369,31]
[325411176,1714854681408,-500.0,0.00041369,31]
[325411177,1714854681418,-500.0,0.00041369,31]
[325411178,1714854681429,-500.0,0.00041369,31]
[325411179,1714854681443,-500.0,0.00041369,31]
[325411180,1714854681453,-151.0,0.00041369,14]
[325411181,1714854681464,-635.21,0.00041369,31]
[325411182,1714854681475,-247.395046,0.00041369,14]
[325411183,1714854681485,-2675.6,0.00041369,31]
[325411184,1714854681495,-1118.51,0.00041369,31]
[325411185,1714854681505,-500.0,0.00041369,31]
[325411186,1714854681517,-530.61599461,0.00041369,31]
[325411187,1714854681528,-822.35,0.00041369,31]
[325411188,1714854681538,-630.86,0.00041369,31]
[325411189,1714854681549,-500.0,0.00041369,31]
[325411190,1714854681559,-540.56868908,0.00041369,31]
[325411191,1714854681570,-500.0,0.00041369,31]
[325411192,1714854681580,-500.0,0.00041369,31]
[325411193,1714854681590,-836.03,0.00041369,31]
[325411194,1714854681601,-1860.36,0.00041369,31]
[325411195,1714854681612,-500.0,0.00041369,31]
[325411196,1714854681622,-500.0,0.00041369,31]
[325411197,1714854681632,-500.0,0.00041369,31]
[325411198,1714854681642,-2241.45,0.00041369,31]
[325411199,1714854681652,-502.69227511,0.00041369,31]
[325411200,1714854681662,-1281.07,0.00041369,31]
[325411201,1714854681672,-151.0,0.00041369,14]
[325411202,1714854681682,-151.0,0.00041369,14]
[325411203,1714854681691,-500.0,0.00041369,31]
[325411204,1714854681702,-500.0,0.00041369,31]
[325411205,1714854681712,-500.0,0.00041369,31]
[325411206,1714854681722,-500.0,0.00041369,31]
[325411207,1714854681732,-500.0,0.00041369,31]
[325411208,1714854681743,-500.0,0.00041369,31]
[325411209,1714854681753,-500.0,0.00041369,31]
[325411210,1714854681763,-500.0,0.00041369,31]
[325411211,1714854681773,-500.0,0.00041369,31]
[325411212,1714854681783,-1291.11,0.00041369,31]
[325411213,1714854681793,-500.0,0.00041369,31]
[325411214,1714854681802,-2014.06,0.00041369,31]
[325411215,1714854681812,-272.91798568,0.00041369,31]
[325411216,1714854681822,-2241.48,0.00041369,31]
[325411217,1714854681832,-1184.12,0.00041369,31]
[325411218,1714854681843,-500.0,0.00041369,31]
[325411219,1714854681853,-656.08,0.00041369,31]
[325411220,1714854681863,-500.0,0.00041369,31]
[325411221,1714854681874,-202.55061228,0.00041369,31]
[325411222,1714854681884,-500.0,0.00041369,31]
[325411223,1714854681894,-1682.52,0.00041369,31]
[325411224,1714854682162,-500.0,0.00041369,31]
[325411225,1714854682173,-2122.54,0.00041369,31]
[325411226,1714854682183,-500.0,0.00041369,31]
[325411227,1714854682194,-500.0,0.00041369,31]
[325411228,1714854682204,-524.7,0.00041369,31]
[325411229,1714854682214,-500.0,0.00041369,31]
[325411230,1714854682223,-1479.32,0.00041369,31]
[325411231,1714854682232,-1245.27,0.00041369,31]
[325411232,1714854682242,-500.0,0.00041369,31]
[325411233,1714854682252,-500.0,0.00041369,31]
[325411234,1714854682262,-500.0,0.00041369,31]
[325411235,1714854682273,-1032.01,0.00041369,7]
[325411236,1714854682284,-500.0,0.00041369,31]
[325411237,1714854682294,-1709.96,0.00041369,31]
[325411238,1714854682304,-238.6714009,0.00041369,31]
[325411239,1714854682315,-620.93,0.00041369,31]
[325411240,1714854682327,-2209.49,0.00041369,31]
[325411241,1714854682337,-1079.79,0.00041369,31]
[325411242,1714854682346,-500.0,0.00041369,31]
[325411243,1714854682356,-1361.18,0.00041369,31]
[325411244,1714854682372,-1842.73,0.00041369,31]
[325411245,1714854682382,-500.0,0.00041369,31]
[325411246,1714854682392,-1059.96,0.00041369,31]
[325411247,1714854682401,-500.0,0.00041369,31]
[325411248,1714854682410,-500.0,0.00041369,31]
[325411249,1714854682419,-500.0,0.00041369,31]
[325411250,1714854682429,-500.0,0.00041369,2]
[325411251,1714854682444,-528.19687145,0.00041369,31]
[325411252,1714854682453,-151.0,0.00041369,14]
[325411253,1714854682462,-500.0,0.00041369,31]
[325411254,1714854682473,-151.0,0.00041369,14]
[325411255,1714854682482,-572.96126177,0.00041369,31]
[325411256,1714854682492,-500.0,0.00041369,31]
[325411257,1714854682501,-500.0,0.00041369,31]
[325411258,1714854682511,-500.0,0.00041369,31]
[325411259,1714854682520,-501.82213843,0.00041369,31]
[325411260,1714854682530,-151.0,0.00041369,14]
[325411261,1714854682539,-500.0,0.00041369,31]
[325411262,1714854682548,-151.0,0.00041369,14]
[325411263,1714854682558,-500.0,0.00041369,31]
[325411264,1714854682567,-898.09,0.00041369,31]
[325411265,1714854682577,-500.0,0.00041369,31]
[325411266,1714854682586,-1067.0,0.00041369,31]
[325411267,1714854682596,-1447.48,0.00041369,31]
[325411268,1714854682605,-500.0,0.00041369,31]
[325411269,1714854682615,-500.0,0.00041369,31]
[325411270,1714854682624,-500.0,0.00041369,31]
[325411271,1714854682634,-503.21,0.00041369,31]
[325411272,1714854682643,-578.1,0.00041369,31]
[325411273,1714854682653,-500.0,0.00041369,31]
[325411274,1714854682662,-756.98,0.00041369,31]
[325411275,1714854682672,-500.0,0.00041369,31]
[325411276,1714854682681,-1638.84,0.00041369,31]
[325411277,1714854682691,-500.0,0.00041369,31]
[325411278,1714854682700,-500.0,0.00041369,31]
[325411279,1714854682710,-500.0,0.00041369,31]
[325411280,1714854682719,-500.0,0.00041369,31]
[325411281,1714854682729,-2071.76,0.00041369,2]
[325411282,1714854682738,-597.99,0.00041369,31]
[325411283,1714854682748,-500.0,0.00041369,31]
[325411284,1714854682758,-500.0,0.00041369,31]
[325411285,1714854682767,-779.18,0.00041369,31]
[325411286,1714854682777,-500.0,0.00041369,31]
[325411287,1714854682786,-500.0,0.00041369,31]
[325411288,1714854682795,-1949.39,0.00041369,31]
[325411289,1714854682805,-500.0,0.00041369,31]
[325411290,1714854682814,-300.0,0.00041369,7]
[325411291,1714854682824,-500.0,0.00041369,31]
[325411292,1714854682834,-979.31,0.00041369,31]
[325411293,1714854682843,-500.0,0.00041369,31]
[325411294,1714854682852,-1798.4,0.00041369,31]
[325411295,1714854682862,-500.0,0.00041369,31]
[325411296,1714854682872,-500.0,0.00041369,31]
[325411297,1714854682881,-1065.77,0.00041369,31]
[325411298,1714854682890,-500.0,0.00041369,31]
[325411299,1714854682899,-500.0,0.00041369,31]
[325411300,1714854682908,-824.59,0.00041369,31]
[325411301,1714854682917,-1787.76,0.00041369,31]
[325411302,1714854682926,-500.0,0.00041369,31]
[325411303,1714854682936,-500.0,0.00041369,31]
[325411304,1714854682945,-500.0,0.00041369,31]
[325411305,1714854682955,-540.0,0.00041369,31]
[325411306,1714854682964,-151.0,0.00041369,14]
[325411307,1714854682974,-500.0,0.00041369,31]
[325411308,1714854682983,-229.943486,0.00041369,14]
[325411309,1714854682993,-500.0,0.00041369,31]
[325411310,1714854683002,-1342.31,0.00041369,31]
[325411311,1714854683012,-807.44,0.00041369,31]
[325411312,1714854683023,-300.14044059,0.00041369,15]
[325411313,1714854683032,-500.0,0.00041369,31]
[325411314,1714854683041,-500.0,0.00041369,31]
[325411315,1714854683051,-500.0,0.00041369,31]
[325411316,1714854683061,-500.0,0.00041369,31]
[325411317,1714854683070,-1052.2,0.00041369,31]
[325411318,1714854683080,-500.0,0.00041369,31]
[325411319,1714854683089,-500.0,0.00041369,31]
[325411320,1714854683098,-971.181849,0.00041369,14]
[325411321,1714854683108,-971.181849,0.00041369,14]
[325411322,1714854683118,-253.29990966,0.00041369,31]
[325411323,1714854683129,-1368.03,0.00041369,31]
[325411324,1714854683139,-1176.66,0.00041369,31]
[325411325,1714854683148,-604.04,0.00041369,31]
[325411326,1714854683158,-1453.37,0.00041369,31]
[325411327,1714854683167,-971.181849,0.00041369,14]
[325411328,1714854683177,-500.0,0.00041369,31]
[325411329,1714854683187,-1457.59,0.00041369,31]
[325411330,1714854683198,-971.181849,0.00041369,14]
[325411331,1714854683207,-1535.14,0.00041369,31]
[325411332,1714854683217,-604.17,0.00041369,31]
[325411333,1714854683226,-632.1,0.00041369,31]
[325411334,1714854683235,-500.0,0.00041369,31]
[325411335,1714854683246,-500.0,0.00041369,31]
[325411336,1714854683258,-500.0,0.00041369,31]
[325411337,1714854683268,-630.11,0.00041369,31]
[325411338,1714854683277,-343.51828201,0.00041369,31]
[325411339,1714854683287,-500.0,0.00041369,31]